[Event "4NCL 2021-22"]
[Site "England"]
[Date "2022.02.13"]
[Round "4.24"]
[White "Townsend, M Paul"]
[Black "Khoury, Theo"]
[Result "1/2-1/2"]
[ECO "E01"]
[WhiteElo "2284"]
[BlackElo "2011"]
[Annotator "ChessBase"]
[PlyCount "113"]
[EventDate "2021.11.27"]
[EventType "team-tourn"]
[EventCountry "ENG"]
[SourceTitle "playchess.com"]
[Source "ChessBase"]
[SourceQuality "1"]
[TimeControl "40/6000+30:3000+30"]

1. d4 {[%emt 0:00:17]} Nf6 {[%emt 0:00:16]} 2. Nf3 {[%emt 0:00:12]} e6 {[%emt 0:00:27]} 3. g3 {[%emt 0:00:20]} c5 {[%emt 0:00:21]} 4. Bg2 {[%emt 0:00:58]} d5 {[%emt 0:01:00]} 5. c4 {[%emt 0:00:38]} cxd4 {[%emt 0:02:26]} 6. Nxd4 {[%emt 0:01:01]} e5 {[%emt 0:00:22]} 7. Nf3 {[%emt 0:00:32]} d4 {[%emt 0:02:49]} 8. O-O {[%emt 0:00:12]} Nc6 {[%emt 0:00:27]} 9. e3 {[%emt 0:00:19]} Bc5 {[%emt 0:02:44]} 10. exd4 {[%emt 0:02:18]} exd4 {[%emt 0:01:45]} 11. Nbd2 {[%emt 0:05:49]} O-O {[%emt 0:02:35]} 12. Nb3 {[%emt 0:03:31]} Qb6 {[%emt 0:10:27]} 13. Bg5 {[%emt 0:19:33]} Ne4 {[%emt 0:04:05]} 14. Bf4 {[%emt 0:00:29]} Be6 {[%emt 0:02:10]} 15. Ne5 {[%emt 0:15:28]} f5 {[%emt 0:10:05]} 16. Rc1 {[%emt 0:09:39]} Nxe5 {[%emt 0:04:35]} 17. Bxe5 {[%emt 0:00:17]} d3 {[%emt 0:05:17]} 18. Nxc5 {[%emt 0:11:28]} Qxc5 {[%emt 0:00:09]} 19. Bf4 {[%emt 0:00:18]} Rad8 {[%emt 0:04:15]} 20. Be3 {[%emt 0:05:39]} Qb4 {[%emt 0:04:55]} 21. Qb3 {[%emt 0:05:54]} Qxb3 {[%emt 0:05:40]} 22. axb3 {[%emt 0:00:01]} b5 {[%emt 0:03:13]} 23. Rfd1 {[%emt 0:02:22]} Rd7 {[%emt 0:03:45]} 24. f3 {[%emt 0:03:05]} Nf6 {[%emt 0:03:36]} 25. Bf1 {[%emt 0:01:02]} Rfd8 {[%emt 0:03:30]} 26. Rc3 {[%emt 0:00:52]} Rb8 {[%emt 0:05:16]} 27. Rdxd3 {[%emt 0:04:18]} bxc4 {[%emt 0:02:03]} 28. Rxd7 {[%emt 0:02:18]} Nxd7 {[%emt 0:00:28]} 29. Bxc4 {[%emt 0:01:12]} Bxc4 {[%emt 0:03:35]} 30. bxc4 {[%emt 0:00:16]} Rxb2 {[%emt 0:00:18]} 31. Bxa7 {[%emt 0:00:17]} Ne5 {[%emt 0:01:31]} 32. Bf2 {[%emt 0:09:58]} Kf7 {[%emt 0:04:14]} 33. c5 {[%emt 0:00:09]} Nc6 {[%emt 0:00:21]} 34. Rd3 {[%emt 0:01:44]} Ne5 {[%emt 0:03:39]} 35. Rc3 {[%emt 0:00:47]} Nc6 {[%emt 0:00:36]} 36. Rd3 {[%emt 0:00:07]} Ne5 {[%emt 0:00:17]} 37. Ra3 {[%emt 0:00:17]} Ke6 {[%emt 0:01:36]} 38. Bd4 {[%emt 0:01:22]} Rb1+ {[%emt 0:02:14]} 39. Kf2 {[%emt 0:00:53]} Kd5 {[%emt 0:02:45]} 40. Bxe5 {[%emt 0:00:25]} Kxe5 {[%emt 0:00:07]} 41. Rc3 {[%emt 0:05:07]} Kd4 {[%emt 0:04:28]} 42. Rc2 {[%emt 0:09:29]} Rb7 {[%emt 0:02:38]} 43. c6 {[%emt 0:02:20]} Rc7 {[%emt 0:01:50]} 44. h4 {[%emt 0:01:03]} g6 {[%emt 0:02:46]} 45. g4 {[%emt 0:18:02]} fxg4 {[%emt 0:01:29]} 46. fxg4 {[%emt 0:00:09]} h5 {[%emt 0:00:20]} 47. Kg3 {[%emt 0:02:06]} Kd5 {[%emt 0:00:33]} 48. Kf4 {[%emt 0:07:34]} Rxc6 {[%emt 0:00:21]} 49. Rd2+ {[%emt 0:00:51]} Ke6 {[%emt 0:00:32]} 50. Kg5 {[%emt 0:00:11]} Kf7 {[%emt 0:01:26]} 51. Rd7+ {[%emt 0:00:27]} Kg8 {[%emt 0:00:35]} 52. gxh5 {[%emt 0:00:40]} gxh5 {[%emt 0:00:08]} 53. Kxh5 {[%emt 0:00:08]} Rb6 {[%emt 0:00:04]} 54. Kg5 {[%emt 0:00:10]} Ra6 {[%emt 0:00:03]} 55. h5 {[%emt 0:00:12]} Rb6 {[%emt 0:00:03]} 56. h6 {[%emt 0:00:14]} Rb1 {[%emt 0:00:03]} 57. Rd8+ {[%emt 0:00:27]} 1/2-1/2

[Event "4NCL 2021-22"]
[Site "England"]
[Date "2022.02.13"]
[Round "4.27"]
[White "Arkell, Keith C"]
[Black "Cont, Arya"]
[Result "1-0"]
[ECO "D38"]
[WhiteElo "2380"]
[BlackElo "2148"]
[Annotator "RC"]
[PlyCount "277"]
[EventDate "2021.11.27"]
[EventType "team-tourn"]
[EventCountry "ENG"]
[SourceTitle "playchess.com"]
[Source "ChessBase"]
[SourceQuality "1"]
[TimeControl "40/6000+30:3000+30"]

1. d4 {[%emt 0:10:48]} d5 {[%emt 0:00:02]} 2. Nf3 {[%emt 0:00:05]} Nf6 {[%emt 0:00:06]} 3. c4 {[%emt 0:00:02]} e6 {[%emt 0:00:04]} 4. cxd5 {[%emt 0:00:04]} exd5 {[%emt 0:00:04]} 5. Nc3 {[%emt 0:00:04]} Bb4 {[%emt 0:00:04]} 6. Qa4+ {[%emt 0:00:04]} Nc6 {[%emt 0:00:05]} 7. Bg5 {[%emt 0:00:03]} h6 {[%emt 0:00:05]} 8. Bxf6 {[%emt 0:00:03]} Qxf6 {[%emt 0:00:05]} 9. e3 {[%emt 0:00:09]} O-O {[%emt 0:00:08]} 10. Be2 {[%emt 0:00:00]} Rd8 {[%emt 0:00:06]} 11. a3 {[%emt 0:00:05]} Bxc3+ {[%emt 0:01:30]} 12. bxc3 {[%emt 0:00:05]} Bg4 {[%emt 0:07:00]} 13. O-O {[%emt 0:00:07]} b6 {[%emt 0:01:00]} 14. c4 {[%emt 0:00:08]} Ne7 {[%emt 0:17:29]} 15. Rfc1 {[%emt 0:00:50]} c6 {[%emt 0:13:59]} 16. cxd5 {[%emt 0:00:10]} Rxd5 {[%emt 0:00:23]} 17. h3 {[%emt 0:03:39]} Ra5 {[%emt 0:09:04]} 18. Qd1 {[%emt 0:01:58]} Bxf3 {[%emt 0:00:29]} 19. Bxf3 {[%emt 0:00:09]} Rd8 {[%emt 0:01:43]} 20. Qe2 {[%emt 0:06:35]} c5 {[%emt 0:05:45]} 21. dxc5 {[%emt 0:00:11]} Rxc5 {[%emt 0:00:31]} 22. Rd1 {[%emt 0:03:25]} Rdc8 {[%emt 0:01:24]} 23. Rab1 {[%emt 0:01:48]} Rc2 {[%emt 0:07:24]} 24. Rd8+ {[%emt 0:04:30]} Rxd8 {[%emt 0:00:02]} 25. Qxc2 {[%emt 0:00:07]} Qf5 {[%emt 0:08:50]} 26. Qxf5 {[%emt 0:01:56]} Nxf5 {[%emt 0:00:03]} 27. Rc1 {[%emt 0:00:28]} Nd6 {[%emt 0:07:56]} 28. a4 {[%emt 0:03:24]} Rd7 {[%emt 0:02:40]} 29. Rd1 {[%emt 0:07:58]} Kf8 {[%emt 0:01:40]} 30. Bg4 {[%emt 0:00:07]} Rd8 {[%emt 0:00:05]} 31. Rc1 {[%emt 0:01:14]} Ne8 {[%emt 0:01:38]} 32. Kf1 {[%emt 0:02:11]} g6 {[%emt 0:00:53]} 33. Be2 {[%emt 0:01:05]} Rd7 {[%emt 0:03:59]} 34. g4 {[%emt 0:12:44]} Rc7 {[%emt 0:01:03]} 35. Rd1 {[%emt 0:00:02]} Ke7 {[%emt 0:00:16]} 36. h4 {[%emt 0:00:16]} Nd6 {[%emt 0:02:56]} 37. Rd4 {[%emt 0:00:50]} Rc5 {[%emt 0:03:12]} 38. Kg2 {[%emt 0:01:49]} f6 {[%emt 0:05:14]} 39. f4 {[%emt 0:05:06]} Ke6 {[%emt 0:02:35]} 40. Kf3 {[%emt 0:04:20]} g5 {[%emt 0:05:07]} 41. hxg5 {[%emt 1:03:47]} hxg5 {[%emt 0:50:32]} 42. Bd1 {[%emt 0:00:37]} gxf4 {[%emt 0:00:00]} 43. exf4 {[%emt 0:00:00]} Rc3+ {[%emt 0:00:00]} 44. Ke2 {[%emt 0:00:00]} f5 {[%emt 0:00:00]} 45. g5 {[%emt 0:00:00]} Ra3 {[%emt 0:00:00]} 46. Bc2 {[%emt 0:00:00]} a6 {[%emt 0:00:00]} 47. Rb4 {[%emt 0:00:00]} b5 {[%emt 0:00:00]} 48. axb5 {[%emt 0:00:00]} axb5 {[%emt 0:00:00]} 49. Bb3+ {[%emt 0:00:00]} Ke7 {[%emt 0:00:00]} 50. Kd3 {[%emt 0:00:00]} Ra1 {[%emt 0:00:00]} 51. Kd4 {[%emt 0:00:00]} Rb1 {[%emt 0:00:00]} 52. Kd3 {[%emt 0:09:30]} Rf1 {[%emt 0:00:00]} 53. Ba2 {[%emt 0:08:05]} Rg1 {[%emt 0:00:00]} 54. Kd4 {[%emt 0:03:17]} Rd1+ {[%emt 0:00:33]} 55. Ke3 {[%emt 0:05:17]} Re1+ {[%emt 0:00:09]} 56. Kf3 {[%emt 0:00:27]} Ne4 {[%emt 0:01:33]} 57. Rxb5 {[%emt 0:02:24]} Rf1+ {[%emt 0:02:36]} 58. Ke3 {[%emt 0:00:07]} Re1+ {[%emt 0:00:50]} 59. Kd4 {[%emt 0:00:48]} Rd1+ {[%emt 0:00:34]} 60. Ke5 {[%emt 0:01:09]} Nd6 {[%emt 0:00:14]} 61. Rb1 {[%emt 0:05:12]} Rd2 {[%emt 0:00:30]} 62. Bd5 {[%emt 0:00:29]} Re2+ {[%emt 0:00:20]} 63. Kd4 {[%emt 0:00:02]} Rd2+ {[%emt 0:00:13]} 64. Kc5 {[%emt 0:00:15]} Rc2+ {[%emt 0:00:14]} 65. Kb6 {[%emt 0:00:43]} Rf2 {[%emt 0:01:28]} 66. Re1+ {[%emt 0:01:37]} Kf8 {[%emt 0:02:27]} 67. Kc6 {[%emt 0:00:22]} Nf7 {[%emt 0:02:05]} 68. Ra1 {[%emt 0:01:00]} Rxf4 {[%emt 0:00:27]} 69. Ra8+ {[%emt 0:00:17]} Kg7 {[%emt 0:00:07]} 70. Ra7 {[%emt 0:00:02]} Kg6 {[%emt 0:00:08]} 71. Rxf7 {[%emt 0:00:38]} Kxg5 {[%emt 0:00:08]} 72. Rg7+ {[%emt 0:00:41]} Kf6 {[%emt 0:00:35]} 73. Rg8 {[%emt 0:00:38]} Rg4 {[%emt 0:00:17]} 74. Rf8+ {[%emt 0:00:09]} Ke5 {[%emt 0:00:22]} 75. Kc5 {[%emt 0:00:16]} Rg1 {[%emt 0:00:13]} 76. Re8+ {[%emt 0:00:42]} Kf4 {[%emt 0:00:05]} 77. Bc4 {[%emt 0:00:11]} Rg3 {[%emt 0:00:27]} 78. Kd4 {[%emt 0:00:02]} Ra3 {[%emt 0:01:21]} 79. Rg8 {[%emt 0:00:58]} Rg3 {[%emt 0:00:12]} 80. Rh8 {[%emt 0:00:14]} Rg1 {[%emt 0:01:18]} 81. Bd3 {[%emt 0:00:13]} Rg4 {[%emt 0:00:26]} 82. Rh1 {[%emt 0:00:41]} Rg3 {[%emt 0:00:13]} 83. Ra1 {[%emt 0:00:15]} Kg5 {[%emt 0:00:41]} 84. Rf1 {[%emt 0:00:24]} f4 {[%emt 0:00:51]} 85. Be2 {[%emt 0:01:03]} Re3 {[%emt 0:00:35]} 86. Bf3 {[%emt 0:00:05]} Kf5 {[%emt 0:00:11]} 87. Rf2 {[%emt 0:00:51]} Re8 {[%emt 0:00:12]} 88. Rg2 {[%emt 0:00:33]} Rd8+ {[%emt 0:00:25]} 89. Kc3 {[%emt 0:00:29]} Rd6 {[%emt 0:00:22]} 90. Bg4+ {[%emt 0:00:10]} Kf6 {[%emt 0:00:19]} 91. Be2 {[%emt 0:00:20]} Ke5 {[%emt 0:00:55]} 92. Rg8 {[%emt 0:00:30]} Rc6+ {[%emt 0:01:19]} 93. Kd2 {[%emt 0:00:08]} Rd6+ {[%emt 0:00:28]} 94. Ke1 {[%emt 0:00:13]} Rh6 {[%emt 0:00:56]} 95. Re8+ {[%emt 0:01:18]} Re6 {[%emt 0:00:41]} 96. Ra8 {[%emt 0:00:27]} Rh6 {[%emt 0:00:41]} 97. Ra5+ {[%emt 0:00:19]} Ke4 {[%emt 0:00:10]} 98. Ra4+ {[%emt 0:00:04]} Ke3 {[%emt 0:00:59]} 99. Ra3+ {[%emt 0:00:02]} Kd4 {[%emt 0:00:13]} 100. Kf1 {[%emt 0:02:38]} Rb6 {[%emt 0:01:05]} 101. Kf2 {[%emt 0:00:11]} Rh6 {[%emt 0:00:26]} 102. Ra4+ {[%emt 0:00:35]} Ke5 {[%emt 0:00:02]} 103. Ra5+ {[%emt 0:00:05]} Kd4 {[%emt 0:00:22]} 104. Kf3 {[%emt 0:00:05]} Rf6 {[%emt 0:00:45]} 105. Bd1 {[%emt 0:00:23]} Kd3 {[%emt 0:01:54]} 106. Rd5+ {[%emt 0:00:05]} Kc4 {[%emt 0:00:08]} 107. Rd8 {[%emt 0:00:10]} Kb4 {[%emt 0:00:37]} 108. Bc2 {[%emt 0:00:16]} Kc3 {[%emt 0:00:06]} 109. Be4 {[%emt 0:00:04]} Kc4 {[%emt 0:00:14]} 110. Rd5 {[%emt 0:00:14]} Rf8 {[%emt 0:00:12]} 111. Ra5 {[%emt 0:00:17]} Kd4 {[%emt 0:00:22]} 112. Bf5 {[%emt 0:00:13]} Re8 {[%emt 0:00:13]} 113. Ra4+ {[%emt 0:00:16]} Kd5 {[%emt 0:00:12]} 114. Be4+ {[%emt 0:00:21]} Ke5 {[%emt 0:00:16]} 115. Ra5+ {[%emt 0:00:03]} Kd4 {[%emt 0:00:35]} 116. Bg6 {[%emt 0:01:34]} Rg8 {[%emt 0:01:21]} 117. Bf7 {[%emt 0:01:16]} Rg1 {[%emt 0:00:25]} 118. Rd5+ {[%emt 0:00:03]} Kc3 {[%emt 0:00:16]} 119. Rf5 {[%emt 0:00:52]} Rf1+ {[%emt 0:03:15]} 120. Ke2 {[%emt 0:00:00]} Rh1 {[%emt 0:00:00]} 121. Rxf4 {[%emt 0:00:00]} Rh2+ {[%emt 0:00:00]} 122. Ke3 {[%emt 0:00:00]} Rh3+ {[%emt 0:00:00]} 123. Ke4 {[%emt 0:00:00]} Rd3 {[%emt 0:00:00]} 124. Rf1 {[%emt 0:00:00]} Rd4+ {[%emt 0:00:00]} 125. Ke5 {[%emt 0:00:00]} Rd7 {[%emt 0:00:00]} 126. Be6 {[%emt 0:00:00]} Ra7 {[%emt 0:00:00]} 127. Rf3+ {[%emt 0:00:03]} Kd2 {[%emt 0:00:00]} 128. Kd4 {[%emt 0:00:06]} Ke2 {[%emt 0:00:00]} 129. Rf8 {[%emt 0:00:18]} Rg7 {[%emt 0:00:00]} 130. Bc4+ {[%emt 0:00:09]} Kd2 {[%emt 0:00:27]} 131. Rf2+ {[%emt 0:00:02]} Ke1 {[%emt 0:00:10]} 132. Re2+ {[%emt 0:00:27]} Kd1 {[%emt 0:00:02]} 133. Rh2 {[%emt 0:00:24]} Rg3 {[%emt 0:02:46]} 134. Bd3 {[%emt 0:00:08]} Rg8 {[%emt 0:00:47]} 135. Kc3 {[%emt 0:00:09]} Rc8+ {[%emt 0:00:18]} 136. Bc4 {[%emt 0:00:02]} Ke1 {[%emt 0:00:38]} 137. Re2+ {[%emt 0:00:08]} Kd1 {[%emt 0:00:03]} 138. Re7 {[%emt 0:00:10]} Rc6 {[%emt 0:00:32]} 139. Rf7 {[%emt 0:00:08]} 1-0

[Event "4NCL 2021-22"]
[Site "England"]
[Date "2022.02.13"]
[Round "4.30"]
[White "Hayward, Philip"]
[Black "Eggleston, David J"]
[Result "0-1"]
[ECO "A29"]
[WhiteElo "2009"]
[BlackElo "2343"]
[Annotator "ChessBase"]
[PlyCount "147"]
[EventDate "2021.11.27"]
[EventType "team-tourn"]
[EventCountry "ENG"]
[SourceTitle "playchess.com"]
[Source "ChessBase"]
[SourceQuality "1"]
[TimeControl "40/6000+30:3000+30"]

1. c4 {[%emt 0:00:03]} e5 {[%emt 0:00:05]} 2. g3 {[%emt 0:00:15]} Nf6 {[%emt 0:00:19]} 3. Bg2 {[%emt 0:00:05]} Nc6 {[%emt 0:00:14]} 4. Nc3 {[%emt 0:00:17]} Bb4 {[%emt 0:00:15]} 5. Nd5 {[%emt 0:00:19]} O-O {[%emt 0:00:24]} 6. Nf3 {[%emt 0:01:06]} d6 {[%emt 0:02:34]} 7. O-O {[%emt 0:00:51]} Bc5 {[%emt 0:01:12]} 8. d3 {[%emt 0:05:30]} h6 {[%emt 0:01:15]} 9. e3 {[%emt 0:03:49]} Bg4 {[%emt 0:07:08]} 10. h3 {[%emt 0:03:26]} Bh5 {[%emt 0:01:25]} 11. a3 {[%emt 0:01:56]} Bb6 {[%emt 0:05:11]} 12. b4 {[%emt 0:06:44]} Nxd5 {[%emt 0:00:43]} 13. cxd5 {[%emt 0:00:34]} Ne7 {[%emt 0:00:11]} 14. Qb3 {[%emt 0:09:45]} Kh8 {[%emt 0:02:19]} 15. g4 {[%emt 0:05:36]} Bg6 {[%emt 0:00:14]} 16. e4 {[%emt 0:02:20]} c6 {[%emt 0:11:16]} 17. dxc6 {[%emt 0:02:24]} Nxc6 {[%emt 0:00:49]} 18. Bb2 {[%emt 0:01:49]} h5 {[%emt 0:07:53]} 19. Kh2 {[%emt 0:10:57]} Qe7 {[%emt 0:07:14]} 20. Rae1 {[%emt 0:11:34]} a6 {[%emt 0:12:42]} 21. Qd1 {[%emt 0:02:56]} Rad8 {[%emt 0:01:58]} 22. Nd2 {[%emt 0:14:03]} Qh4 {[%emt 0:08:28]} 23. Kg1 {[%emt 0:02:41]} hxg4 {[%emt 0:02:50]} 24. hxg4 {[%emt 0:00:52]} Bd4 {[%emt 0:02:50]} 25. Bc1 {[%emt 0:02:26]} Kg8 {[%emt 0:01:23]} 26. Nc4 {[%emt 0:02:46]} f6 {[%emt 0:13:53]} 27. Ne3 {[%emt 0:00:49]} Ne7 {[%emt 0:00:39]} 28. Bf3 {[%emt 0:06:17]} d5 {[%emt 0:04:23]} 29. Kg2 {[%emt 0:05:21]} dxe4 {[%emt 0:08:31]} 30. Rh1 {[%emt 0:00:04]} exf3+ {[%emt 0:00:35]} 31. Qxf3 {[%emt 0:00:02]} Qxh1+ {[%emt 0:03:03]} 32. Rxh1 {[%emt 0:00:02]} Be8 {[%emt 0:00:15]} 33. Qh3 {[%emt 0:01:58]} Bc6+ {[%emt 0:00:05]} 34. f3 {[%emt 0:00:28]} Bxe3 {[%emt 0:01:49]} 35. Bxe3 {[%emt 0:01:15]} Kf7 {[%emt 0:02:13]} 36. Qh5+ {[%emt 0:04:09]} Ng6 {[%emt 0:00:12]} 37. Qf5 {[%emt 0:02:03]} Rh8 {[%emt 0:00:36]} 38. g5 {[%emt 0:01:18]} Rxh1 {[%emt 0:01:07]} 39. Kxh1 {[%emt 0:00:31]} Rh8+ {[%emt 0:00:59]} 40. Kg1 {[%emt 0:00:09]} Nh4 {[%emt 0:00:15]} 41. g6+ {[%emt 0:50:25]} Nxg6 {[%emt 0:50:17]} 42. Qg4 {[%emt 0:00:00]} Ne7 {[%emt 0:00:00]} 43. Kf2 {[%emt 0:00:00]} g5 {[%emt 0:00:00]} 44. Qc4+ {[%emt 0:00:00]} Kg6 {[%emt 0:00:00]} 45. d4 {[%emt 0:00:00]} exd4 {[%emt 0:00:00]} 46. Qxd4 {[%emt 0:00:00]} Rh3 {[%emt 0:00:00]} 47. Qd8 {[%emt 0:00:00]} Rxf3+ {[%emt 0:00:00]} 48. Ke2 {[%emt 0:00:00]} Nf5 {[%emt 0:00:00]} 49. Qg8+ {[%emt 0:00:00]} Kh5 {[%emt 0:00:00]} 50. Bf2 {[%emt 0:00:00]} Kg4 {[%emt 0:00:00]} 51. Qe6 {[%emt 0:00:00]} Kh3 {[%emt 0:00:00]} 52. Ke1 {[%emt 0:00:00]} Kg2 {[%emt 0:00:00]} 53. Qa2 {[%emt 0:01:26]} Kh3 {[%emt 0:00:00]} 54. Qe6 {[%emt 0:01:10]} g4 {[%emt 0:00:00]} 55. Qxf6 {[%emt 0:00:33]} g3 {[%emt 0:00:00]} 56. Bc5 {[%emt 0:01:58]} Rf4 {[%emt 0:01:19]} 57. Qh8+ {[%emt 0:00:58]} Nh4 {[%emt 0:00:27]} 58. Bd6 {[%emt 0:02:20]} g2 {[%emt 0:01:48]} 59. Qc8+ {[%emt 0:00:10]} Rf5 {[%emt 0:04:04]} 60. Bc5 {[%emt 0:00:29]} Be4 {[%emt 0:00:54]} 61. Ke2 {[%emt 0:00:34]} Bf3+ {[%emt 0:00:30]} 62. Kd3 {[%emt 0:00:55]} Bg4 {[%emt 0:00:06]} 63. Qc7 {[%emt 0:00:39]} Nf3 {[%emt 0:01:12]} 64. Ba7 {[%emt 0:00:38]} b5 {[%emt 0:00:55]} 65. Ke4 {[%emt 0:00:40]} g1=Q {[%emt 0:01:18]} 66. Bxg1 {[%emt 0:00:02]} Nxg1 {[%emt 0:00:07]} 67. Qa7 {[%emt 0:00:33]} Ne2 {[%emt 0:00:48]} 68. Qxa6 {[%emt 0:00:14]} Nc3+ {[%emt 0:00:10]} 69. Kd4 {[%emt 0:00:30]} Ne2+ {[%emt 0:00:41]} 70. Ke4 {[%emt 0:00:22]} Rf4+ {[%emt 0:00:23]} 71. Ke5 {[%emt 0:00:21]} Rf3 {[%emt 0:00:11]} 72. a4 {[%emt 0:00:48]} Re3+ {[%emt 0:00:55]} 73. Kd5 {[%emt 0:00:47]} Be6+ 74. Kc5 {[%emt 0:00:01]} 0-1

[Event "4NCL 2021-22"]
[Site "England"]
[Date "2022.02.13"]
[Round "4.31"]
[White "Boswell, Jacob Connor"]
[Black "Arora, Tashika"]
[Result "0-1"]
[ECO "A45"]
[WhiteElo "2053"]
[BlackElo "1823"]
[Annotator "ChessBase"]
[PlyCount "72"]
[EventDate "2021.11.27"]
[EventType "team-tourn"]
[EventCountry "ENG"]
[SourceTitle "playchess.com"]
[Source "ChessBase"]
[SourceQuality "1"]
[TimeControl "40/6000+30:3000+30"]

1. d4 {[%emt 0:00:01]} Nf6 {[%emt 0:00:04]} 2. Bg5 {[%emt 0:00:07]} Ne4 {[%emt 0:00:11]} 3. h4 {[%emt 0:00:07]} d5 {[%emt 0:00:26]} 4. Nd2 {[%emt 0:00:08]} Bf5 {[%emt 0:03:05]} 5. e3 {[%emt 0:05:23]} Nxg5 {[%emt 0:03:40]} 6. hxg5 {[%emt 0:00:02]} e6 {[%emt 0:00:33]} 7. f4 {[%emt 0:05:59]} c5 {[%emt 0:01:00]} 8. g4 {[%emt 0:09:18]} Bg6 {[%emt 0:03:56]} 9. c3 {[%emt 0:03:34]} cxd4 {[%emt 0:01:28]} 10. cxd4 {[%emt 0:03:34]} Nc6 {[%emt 0:04:14]} 11. Ngf3 {[%emt 0:04:13]} Qb6 {[%emt 0:14:24]} 12. Nb3 {[%emt 0:29:44]} Nb4 {[%emt 0:03:28]} 13. Kf2 {[%emt 0:01:39]} Be4 {[%emt 0:05:21]} 14. Rh2 {[%emt 0:07:25]} Bd6 {[%emt 0:02:56]} 15. Ne1 {[%emt 0:04:13]} Rc8 {[%emt 0:04:15]} 16. Rc1 {[%emt 0:04:34]} Ke7 {[%emt 0:02:56]} 17. a3 {[%emt 0:08:29]} Nc2 {[%emt 0:10:46]} 18. Nd2 {[%emt 0:04:34]} Qxb2 {[%emt 0:01:58]} 19. Rb1 {[%emt 0:02:09]} Nxe3 {[%emt 0:13:00]} 20. Kxe3 {[%emt 0:00:37]} Bxb1 {[%emt 0:00:07]} 21. Qxb1 {[%emt 0:04:38]} Qxb1 {[%emt 0:00:19]} 22. Nxb1 {[%emt 0:00:01]} Rc1 {[%emt 0:00:08]} 23. Rb2 {[%emt 0:00:16]} Rxe1+ {[%emt 0:00:31]} 24. Kf2 {[%emt 0:00:01]} Rc1 {[%emt 0:00:14]} 25. f5 {[%emt 0:04:09]} b6 {[%emt 0:00:44]} 26. Bd3 {[%emt 0:04:14]} h5 {[%emt 0:01:08]} 27. f6+ {[%emt 0:03:19]} gxf6 {[%emt 0:00:14]} 28. gxf6+ {[%emt 0:00:02]} Kxf6 {[%emt 0:00:07]} 29. g5+ {[%emt 0:00:20]} Kxg5 {[%emt 0:00:16]} 30. Nd2 {[%emt 0:01:08]} h4 {[%emt 0:00:36]} 31. Nf3+ {[%emt 0:00:47]} Kf6 {[%emt 0:00:12]} 32. Ke3 {[%emt 0:00:37]} h3 {[%emt 0:00:24]} 33. Rf2 {[%emt 0:00:47]} Ke7 {[%emt 0:00:24]} 34. Ng5 {[%emt 0:00:33]} f6 {[%emt 0:00:10]} 35. Bg6 {[%emt 0:00:45]} h2 {[%emt 0:00:39]} 36. Rxf6 {[%emt 0:00:32]} Kxf6 {[%emt 0:00:15]} 0-1

[Event "4NCL 2021-22"]
[Site "England"]
[Date "2022.02.13"]
[Round "4.32"]
[White "Zakarian, Dimitrios Levon"]
[Black "Pert, Max"]
[Result "1-0"]
[ECO "D37"]
[WhiteElo "1962"]
[BlackElo "1922"]
[Annotator "NA"]
[PlyCount "63"]
[EventDate "2021.11.27"]
[EventType "team-tourn"]
[EventCountry "ENG"]
[SourceTitle "playchess.com"]
[Source "ChessBase"]
[SourceQuality "1"]
[TimeControl "40/6000+30:3000+30"]

1. d4 {[%emt 0:00:03]} d5 {[%emt 0:00:06]} 2. Nf3 {[%emt 0:00:03]} Nf6 {[%emt 0:00:15]} 3. c4 {[%emt 0:00:04]} e6 {[%emt 0:00:21]} 4. Nc3 {[%emt 0:00:08]} a6 {[%emt 0:01:12]} 5. cxd5 {[%emt 0:00:25]} exd5 {[%emt 0:01:03]} 6. Bg5 {[%emt 0:00:46]} Be6 {[%emt 0:01:19]} 7. e3 {[%emt 0:01:09]} Nbd7 {[%emt 0:01:24]} 8. Bd3 {[%emt 0:01:19]} h6 {[%emt 0:01:59]} 9. Bh4 {[%emt 0:00:42]} g5 {[%emt 0:01:31]} 10. Bg3 {[%emt 0:00:16]} Nh5 {[%emt 0:01:25]} 11. Be5 {[%emt 0:05:22]} Nhf6 {[%emt 0:06:01]} 12. Qb3 {[%emt 0:06:33]} g4 {[%emt 0:03:00]} 13. Bxf6 {[%emt 0:01:30]} Qxf6 {[%emt 0:06:16]} 14. Ne5 {[%emt 0:03:04]} O-O-O {[%emt 0:00:42]} 15. Nc6 {[%emt 0:13:23]} Re8 {[%emt 0:16:12]} 16. Na5 {[%emt 0:02:07]} Nb6 {[%emt 0:02:22]} 17. Na4 {[%emt 0:00:46]} Qe7 {[%emt 0:02:15]} 18. Nc5 {[%emt 0:02:49]} Kb8 {[%emt 0:15:34]} 19. Bxa6 {[%emt 0:02:59]} Bc8 {[%emt 0:02:04]} 20. Bxb7 {[%emt 0:00:16]} Bxb7 {[%emt 0:00:30]} 21. Naxb7 {[%emt 0:00:11]} Bg7 {[%emt 0:04:07]} 22. O-O-O {[%emt 0:03:59]} Qh4 {[%emt 0:05:03]} 23. Nd6 {[%emt 0:07:54]} Re7 {[%emt 0:03:09]} 24. Nf5 {[%emt 0:00:33]} Qg5 {[%emt 0:00:42]} 25. Nxe7 {[%emt 0:00:15]} Qxe7 {[%emt 0:00:06]} 26. Qa3 {[%emt 0:01:43]} Qf6 {[%emt 0:00:46]} 27. Qa6 {[%emt 0:00:59]} Qc6 {[%emt 0:00:15]} 28. Kb1 {[%emt 0:00:12]} Bf8 {[%emt 0:01:02]} 29. Rc1 {[%emt 0:00:23]} Rg8 {[%emt 0:01:26]} 30. Ka1 {[%emt 0:01:04]} Rg6 {[%emt 0:00:45]} 31. Nb3 {[%emt 0:01:16]} Qa4 {[%emt 0:00:29]} 32. Na5 {[%emt 0:00:50]} 1-0

[Event "4NCL 2021-22"]
[Site "England"]
[Date "2022.02.13"]
[Round "4.35"]
[White "Venkatesan, Kavin"]
[Black "Holland, James P"]
[Result "1/2-1/2"]
[ECO "A40"]
[WhiteElo "2074"]
[BlackElo "2224"]
[Annotator "ChessBase"]
[PlyCount "65"]
[EventDate "2021.11.27"]
[EventType "team-tourn"]
[EventCountry "ENG"]
[SourceTitle "playchess.com"]
[Source "ChessBase"]
[SourceQuality "1"]
[TimeControl "40/6000+30:3000+30"]

1. d4 {[%emt 0:00:03]} b5 {[%emt 0:02:32]} 2. e4 {[%emt 0:00:14]} a6 {[%emt 0:00:16]} 3. Nf3 {[%emt 0:03:15]} Bb7 {[%emt 0:00:18]} 4. Nbd2 {[%emt 0:01:36]} e6 {[%emt 0:07:47]} 5. Bd3 {[%emt 0:04:18]} c5 {[%emt 0:00:18]} 6. c3 {[%emt 0:05:51]} d6 {[%emt 0:05:34]} 7. O-O {[%emt 0:05:46]} g5 {[%emt 0:01:22]} 8. a4 {[%emt 0:05:59]} b4 {[%emt 0:10:58]} 9. cxb4 {[%emt 0:06:14]} g4 {[%emt 0:00:32]} 10. Ne1 {[%emt 0:00:16]} cxd4 {[%emt 0:00:03]} 11. Qxg4 {[%emt 0:02:19]} Nc6 {[%emt 0:04:10]} 12. b5 {[%emt 0:02:34]} Ne5 {[%emt 0:00:13]} 13. Qe2 {[%emt 0:00:23]} Nxd3 {[%emt 0:01:29]} 14. Qxd3 {[%emt 0:01:15]} Bg7 {[%emt 0:00:17]} 15. Nef3 {[%emt 0:03:13]} Ne7 {[%emt 0:05:53]} 16. Nxd4 {[%emt 0:07:17]} d5 {[%emt 0:00:17]} 17. bxa6 {[%emt 0:02:06]} Bxa6 {[%emt 0:00:43]} 18. Nb5 {[%emt 0:00:12]} dxe4 {[%emt 0:15:59]} 19. Qxd8+ {[%emt 0:00:12]} Kxd8 {[%emt 0:00:03]} 20. Ra3 {[%emt 0:02:11]} f5 {[%emt 0:00:30]} 21. Rd1 {[%emt 0:02:45]} Nd5 {[%emt 0:00:51]} 22. Nc4 {[%emt 0:01:41]} Ke7 {[%emt 0:05:47]} 23. Rg3 {[%emt 0:09:15]} Bf6 {[%emt 0:07:51]} 24. b3 {[%emt 0:00:33]} Rad8 {[%emt 0:07:55]} 25. Ba3+ {[%emt 0:03:04]} Kd7 {[%emt 0:02:03]} 26. Nbd6 {[%emt 0:03:32]} Kc7 {[%emt 0:07:18]} 27. Nf7 {[%emt 0:06:04]} Nf4 {[%emt 0:04:46]} 28. Rxd8 {[%emt 0:07:30]} Ne2+ {[%emt 0:00:56]} 29. Kf1 {[%emt 0:00:49]} Nxg3+ {[%emt 0:00:05]} 30. hxg3 {[%emt 0:00:02]} Rxd8 {[%emt 0:00:09]} 31. Nxd8 {[%emt 0:00:05]} Kxd8 {[%emt 0:00:16]} 32. Ke2 {[%emt 0:04:59]} Bd4 {[%emt 0:04:11]} 33. f3 {[%emt 0:02:40]} 1/2-1/2